fUSD/lending_fUSD_20240125
["ID","MTS","AMOUNT","RATE_DAILY","PERIOD"]
[312744783,1706191888103,-785.98,0.00054109,31]
[312744784,1706191888113,-575.32,0.00054109,31]
[312744785,1706191888122,-787.27,0.00054109,31]
[312744786,1706191888132,-641.44,0.00054109,31]
[312744787,1706191888143,-500.0,0.00054109,31]
[312744788,1706191888153,-155.00526785,0.00054149,60]
[312744789,1706191888163,-396.03974936,0.00054175,60]
[312744790,1706191888172,-153.90506379,0.00054182,60]
[312744791,1706191888182,-362.94569196,0.00054209,60]
[312744792,1706191888195,-159.9062418,0.00054219,14]
[312744793,1706191888204,-150.0,0.00054219,14]
[312744794,1706191888215,-1175.50042208,0.0005422,60]
[312744795,1706191888226,-153.90506379,0.00054221,60]
[312744796,1706191888235,-1175.50042208,0.00054232,60]
[312744797,1706191888244,-1175.50042208,0.0005424,60]
[312744798,1706191888254,-300.0,0.00054245,2]
[312744799,1706191888263,-300.0,0.00054245,2]
[312744800,1706191888273,-300.0,0.00054245,2]
[312744801,1706191888282,-300.0,0.00054245,2]
[312744802,1706191888291,-167.92454049,0.00054245,2]
[312744803,1706191888302,-512.77,0.00054246,31]
[312744804,1706191888313,-749.61,0.00054246,31]
[312744805,1706191888323,-785.22,0.00054246,120]
[312744806,1706191888332,-299.90994605,0.00054246,31]
[312744807,1706191888341,-922.06,0.00054246,31]
[312744808,1706191888350,-500.0,0.00054246,31]
[312744809,1706191888360,-500.0,0.00054246,31]
[312744810,1706191888370,-500.0,0.00054246,31]
[312744811,1706191888381,-1085.77,0.00054246,7]
[312744812,1706191888390,-536.71,0.00054246,20]
[312744813,1706191888399,-287.18179965,0.00054246,31]
[312744814,1706191888409,-1442.1,0.00054246,31]
[312744815,1706191888418,-2284.7,0.00054246,31]
[312744816,1706191888427,-500.0,0.00054246,31]
[312744817,1706191888437,-505.7,0.00054246,31]
[312744818,1706191888446,-168.17,0.00054246,31]
[312744819,1706191888457,-554.4,0.00054246,31]
[312744820,1706191888467,-955.46,0.00054246,2]
[312744821,1706191888476,-544.19,0.00054246,31]
[312744822,1706191888486,-500.0,0.00054246,31]
[312744823,1706191888495,-276.16919886,0.00054246,31]
[312744824,1706191888504,-500.0,0.00054246,31]
[312744825,1706191888514,-893.0,0.00054246,2]
[312744826,1706191888524,-1263.99,0.00054246,31]
[312744827,1706191888533,-818.92,0.00054246,31]
[312744828,1706191888542,-232.19009616,0.00054246,31]
[312744829,1706191888551,-500.0,0.00054246,31]
[312744830,1706191888564,-500.0,0.00054246,31]
[312744831,1706191888573,-522.59,0.00054246,31]
[312744832,1706191888582,-710.0,0.00054246,31]
[312744833,1706191888591,-558.35,0.00054246,31]
[312744834,1706191888602,-812.86,0.00054246,31]
[312744835,1706191888611,-1032.42,0.00054246,31]
[312744836,1706191888621,-500.0,0.00054246,31]
[312744837,1706191888630,-599.04,0.00054246,31]
[312744838,1706191888641,-587.69923535,0.00054246,60]
[312744839,1706191888653,-500.0,0.00054246,31]
[312744840,1706191888662,-587.69923535,0.00054248,60]
[312744841,1706191888671,-155.68396746,0.0005425,60]
[312744842,1706191888681,-151.01696798,0.00054256,60]
[312744843,1706191888690,-200.0,0.00054356,120]
[312744844,1706191888701,-396.03974936,0.00054365,60]
[312744845,1706191888710,-154.23863763,0.00054382,60]
[312744846,1706191888719,-785.98,0.00054383,31]
[312744847,1706191888728,-575.32,0.00054383,31]
[312744848,1706191888737,-787.27,0.00054383,31]
[312744849,1706191888747,-641.44,0.00054383,31]
[312744850,1706191888756,-500.0,0.00054383,31]
[312744851,1706191888766,-1175.50042208,0.0005441,60]
[312744852,1706191888775,-154.3362328,0.00054447,60]
[312744853,1706191888786,-587.69923535,0.00054463,60]
[312744854,1706191888795,-168.0,0.000545,120]
[312744855,1706191888806,-162.78049167,0.00054505,60]
[312744856,1706191888815,-150.0,0.00054506,2]
[312744857,1706191888825,-512.77,0.0005452,120]
[312744858,1706191888834,-749.61,0.0005452,120]
[312744859,1706191888844,-785.22,0.0005452,120]
[312744860,1706191888854,-922.06,0.0005452,120]
[312744861,1706191888864,-500.0,0.0005452,120]
[312744862,1706191888874,-500.0,0.0005452,120]
[312744863,1706191888883,-500.0,0.0005452,120]
[312744864,1706191888892,-1085.77,0.0005452,7]
[312744865,1706191888902,-536.71,0.0005452,20]
[312744866,1706191888911,-1442.1,0.0005452,120]
[312744867,1706191888920,-2284.7,0.0005452,120]
[312744868,1706191888930,-500.0,0.0005452,120]
[312744869,1706191888939,-505.7,0.0005452,120]
[312744870,1706191888948,-168.17,0.0005452,120]
[312744871,1706191888958,-554.4,0.0005452,120]
[312744872,1706191888968,-955.46,0.0005452,2]
[312744873,1706191888977,-544.19,0.0005452,120]
[312744874,1706191888986,-350.03202035,0.0005452,120]
[312744875,1706191888995,-500.0,0.0005452,120]
[312744876,1706191889005,-893.0,0.0005452,2]
[312744877,1706191889014,-1263.99,0.0005452,120]
[312744878,1706191889024,-818.92,0.0005452,120]
[312744879,1706191889034,-500.0,0.0005452,120]
[312744880,1706191889043,-500.0,0.0005452,120]
[312744881,1706191889053,-522.59,0.0005452,120]
[312744882,1706191889063,-710.0,0.0005452,120]
[312744883,1706191889073,-558.35,0.0005452,120]
[312744884,1706191889083,-812.86,0.0005452,120]
[312744885,1706191889092,-1032.42,0.0005452,120]
[312744886,1706191889102,-500.0,0.0005452,120]
[312744887,1706191889111,-599.04,0.0005452,120]
[312744888,1706191889120,-500.0,0.0005452,120]
[312744889,1706191889131,-587.69923535,0.00054551,60]
[312744890,1706191889140,-1175.50042208,0.00054575,60]
[312744891,1706191889150,-151.01696798,0.00054597,60]
[312744892,1706191889159,-152.0,0.000546,120]
[312744893,1706191889169,-158.0,0.000546,120]
[312744894,1706191889179,-174.13403782,0.00054643,60]
[312744895,1706191889188,-155.00526785,0.00054649,60]
[312744896,1706191889199,-171.60158335,0.00054651,60]
[312744897,1706191889211,-785.98,0.00054657,120]
[312744898,1706191889221,-575.32,0.00054657,120]
[312744899,1706191889230,-787.27,0.00054657,120]
[312744900,1706191889240,-641.44,0.00054657,120]
[312744901,1706191889251,-634.7680001,0.00054657,120]
[312744902,1706191889260,-170.0,0.00054658,120]
[312744903,1706191889270,-2000.0,0.0005468,71]
[312744904,1706191889281,-396.03974936,0.00054701,60]
[312744905,1706191889291,-416.95,0.00054704,30]
[312744906,1706191889301,-151.01696798,0.00054722,60]
[312744907,1706191889312,-2860.0,0.00054727,117]
[312744908,1706191889321,-155.00526785,0.00054745,60]
[312744909,1706191889331,-155.21565967,0.0005475,60]
[312744910,1706191889341,-152.22697284,0.00054775,62]
[312744911,1706191889352,-587.69923535,0.00054775,60]
[312744912,1706191889362,-512.77,0.00054794,120]
[312744913,1706191889373,-749.61,0.00054794,120]
[312744914,1706191889386,-785.22,0.00054794,120]
[312744915,1706191889396,-526.64697238,0.00054794,120]
[312744916,1706191889405,-922.06,0.00054794,120]
[312744917,1706191889414,-500.0,0.00054794,120]
[312744918,1706191889425,-500.0,0.00054794,120]
[312744919,1706191889434,-500.0,0.00054794,120]
[312744920,1706191889444,-1085.77,0.00054794,7]
[312744921,1706191889455,-536.71,0.00054794,20]
[312744922,1706191889465,-1442.1,0.00054794,120]
[312744923,1706191889474,-2284.7,0.00054794,120]
[312744924,1706191889484,-177.12161533,0.00054794,120]
[312744925,1706191889493,-2954.82,0.00054794,120]
[312744926,1706191889502,-2954.82,0.00054794,120]
[312744927,1706191889511,-2954.82,0.00054794,120]
[312744928,1706191889521,-2954.82,0.00054794,120]
[312744929,1706191889530,-2954.82,0.00054794,120]
[312744930,1706191889539,-2954.82,0.00054794,120]
[312744931,1706191889549,-2954.82,0.00054794,120]
[312744932,1706191889559,-2954.82,0.00054794,120]
[312744933,1706191889568,-2954.82,0.00054794,120]
[312744934,1706191889578,-2954.82,0.00054794,120]
[312744935,1706191889587,-2954.82,0.00054794,120]
[312744936,1706191889596,-2954.82,0.00054794,120]
[312744937,1706191889607,-2954.82,0.00054794,120]
[312744938,1706191889616,-2954.82,0.00054794,120]
[312744939,1706191889627,-2954.82,0.00054794,120]
[312744940,1706191889636,-2954.82,0.00054794,120]
[312744941,1706191889646,-2954.82,0.00054794,120]
[312744942,1706191889655,-2954.82,0.00054794,120]
[312744943,1706191889665,-2954.82,0.00054794,120]
[312744944,1706191889674,-2954.82,0.00054794,120]
[312744945,1706191889683,-2954.82,0.00054794,120]
[312744946,1706191889693,-5000.0,0.00054794,120]
[312744947,1706191889701,-505.7,0.00054794,120]
[312744948,1706191889711,-168.17,0.00054794,120]
[312744949,1706191889720,-554.4,0.00054794,120]
[312744950,1706191889730,-599.44064556,0.00054794,120]
[312744951,1706191889740,-955.46,0.00054794,2]
[312744952,1706191889749,-544.19,0.00054794,120]
[312744953,1706191889759,-500.0,0.00054794,120]
[312744954,1706191889769,-893.0,0.00054794,2]
[312744955,1706191889778,-1263.99,0.00054794,120]
[312744956,1706191889787,-818.92,0.00054794,120]
[312744957,1706191889797,-500.0,0.00054794,120]
[312744958,1706191889806,-500.0,0.00054794,120]
[312744959,1706191889816,-522.59,0.00054794,120]
[312744960,1706191889825,-558.35,0.00054794,120]
[312744961,1706191889835,-710.0,0.00054794,120]
[312744962,1706191889844,-812.86,0.00054794,120]
[312744963,1706191889854,-1032.42,0.00054794,120]
[312744964,1706191889864,-500.0,0.00054794,120]
[312744965,1706191889873,-599.04,0.00054794,120]
[312744966,1706191889882,-500.0,0.00054794,120]
[312744967,1706191889892,-500.0,0.00054794,120]
[312744968,1706191889901,-500.0,0.00054794,120]
[312744969,1706191889910,-511.40237522,0.00054794,120]
[312744970,1706191889920,-500.0,0.00054794,120]
[312744971,1706191889930,-500.0,0.00054794,120]
[312744972,1706191889939,-500.0,0.00054794,120]
[312744973,1706191889949,-525.64001862,0.00054794,120]
[312744974,1706191889959,-500.0,0.00054794,120]
[312744975,1706191889968,-500.0,0.00054794,120]
[312744976,1706191889976,-539.84,0.00054794,120]
[312744977,1706191889986,-512.00850713,0.00054794,120]
[312744978,1706191889995,-500.0,0.00054794,120]
[312744979,1706191890005,-500.0,0.00054794,120]
[312744980,1706191890015,-500.0,0.00054794,120]
[312744981,1706191890024,-513.35163744,0.00054794,120]
[312744982,1706191890034,-500.0,0.00054794,120]
[312744983,1706191890044,-500.0,0.00054794,120]
[312744984,1706191890054,-511.1918422,0.00054794,120]
[312744985,1706191890064,-500.0,0.00054794,120]
[312744986,1706191890076,-509.23180617,0.00054794,120]
[312744987,1706191890086,-443.51236479,0.00054794,120]
[312744988,1706191890095,-508.84701527,0.00054794,120]
[312744989,1706191890105,-500.0,0.00054794,120]
[312744990,1706191890114,-524.36605223,0.00054794,30]
[312744991,1706191890124,-500.0,0.00054794,120]
[312744992,1706191890134,-500.0,0.00054794,120]
[312744993,1706191890143,-513.79130876,0.00054794,120]
[312744994,1706191890153,-500.0,0.00054794,120]
[312744995,1706191890162,-500.0,0.00054794,120]
[312744996,1706191890171,-500.0,0.00054794,120]
[312744997,1706191890181,-500.0,0.00054794,120]
[312744998,1706191890190,-500.0,0.00054794,120]
[312744999,1706191890199,-500.0,0.00054794,120]
[312745000,1706191890208,-500.0,0.00054794,120]
[312745001,1706191890218,-519.08517051,0.00054794,120]
[312745002,1706191890227,-500.0,0.00054794,120]
[312745003,1706191890237,-500.0,0.00054794,120]
[312745004,1706191890247,-633.73638991,0.00054794,120]
[312745005,1706191890256,-514.39432882,0.00054794,120]
[312745006,1706191890265,-500.0,0.00054794,120]
[312745007,1706191890274,-500.0,0.00054794,120]
[312745008,1706191890283,-469.12560237,0.00054794,120]
[312745009,1706191890292,-500.0,0.00054794,120]
[312745010,1706191890302,-500.0,0.00054794,120]
[312745011,1706191890312,-500.0,0.00054794,120]
[312745012,1706191890322,-511.52169513,0.00054794,120]
[312745013,1706191890331,-583.8684604,0.00054794,120]
[312745014,1706191890340,-500.0,0.00054794,120]
[312745015,1706191890349,-500.0,0.00054794,120]
[312745016,1706191890359,-519.27577222,0.00054794,120]
[312745017,1706191890368,-507.76506624,0.00054794,120]
[312745018,1706191890379,-500.0,0.00054794,120]
[312745019,1706191890389,-500.0,0.00054794,120]
[312745020,1706191890398,-500.0,0.00054794,120]
[312745021,1706191890408,-500.0,0.00054794,120]
[312745022,1706191890418,-1450.48,0.00054794,2]
[312745023,1706191890429,-500.0,0.00054794,120]
[312745024,1706191890438,-500.0,0.00054794,120]
[312745025,1706191890447,-500.0,0.00054794,120]
[312745026,1706191890458,-500.0,0.00054794,120]
[312745027,1706191890468,-500.0,0.00054794,120]
[312745028,1706191890477,-500.0,0.00054794,120]
[312745029,1706191890487,-500.0,0.00054794,120]
[312745030,1706191890496,-509.12325652,0.00054794,120]
[312745031,1706191890505,-500.0,0.00054794,120]
[312745032,1706191890515,-500.0,0.00054794,120]
[312745033,1706191890525,-500.0,0.00054794,120]
[312745034,1706191890535,-514.97795765,0.00054794,120]
[312745035,1706191890546,-500.0,0.00054794,120]
[312745036,1706191890557,-500.0,0.00054794,120]
[312745037,1706191890568,-605.41203197,0.00054794,120]
[312745038,1706191890578,-500.0,0.00054794,120]
[312745039,1706191890589,-500.0,0.00054794,120]
[312745040,1706191890598,-560.4852972,0.00054794,120]
[312745041,1706191890607,-500.0,0.00054794,120]
[312745042,1706191890617,-500.0,0.00054794,120]
[312745043,1706191890628,-500.0,0.00054794,120]
[312745044,1706191890638,-500.0,0.00054794,120]
[312745045,1706191890648,-317.61600499,0.00054794,120]
[312745046,1706191890658,-500.0,0.00054794,120]
[312745047,1706191890667,-623.52819233,0.00054794,120]
[312745048,1706191890676,-507.23763953,0.00054794,120]
[312745049,1706191890686,-500.0,0.00054794,120]
[312745050,1706191890695,-1000.0,0.00054794,120]
[312745051,1706191890705,-507.04369857,0.00054794,120]
[312745052,1706191890714,-500.0,0.00054794,120]
[312745053,1706191890723,-500.0,0.00054794,120]
[312745054,1706191890733,-500.0,0.00054794,120]
[312745055,1706191890742,-515.63252858,0.00054794,120]
[312745056,1706191890751,-500.0,0.00054794,120]
[312745057,1706191890760,-514.2264411,0.00054794,120]
[312745058,1706191890770,-500.0,0.00054794,120]
[312745059,1706191890779,-605.60765953,0.00054794,120]
[312745060,1706191890788,-515.15074963,0.00054794,120]
[312745061,1706191890797,-500.0,0.00054794,120]
[312745062,1706191890808,-500.0,0.00054794,10]
[312745063,1706191890818,-504.36199508,0.00054794,120]
[312745064,1706191890827,-500.0,0.00054794,120]
[312745065,1706191890836,-781.4,0.00054794,120]
[312745066,1706191890846,-500.0,0.00054794,120]
[312745067,1706191890855,-500.0,0.00054794,120]
[312745068,1706191890865,-500.0,0.00054794,120]
[312745069,1706191890874,-500.0,0.00054794,120]
[312745070,1706191890883,-506.96619544,0.00054794,14]
[312745071,1706191890893,-500.0,0.00054794,120]
[312745072,1706191890902,-511.96173725,0.00054794,120]
[312745073,1706191890913,-500.0,0.00054794,120]
[312745074,1706191890923,-500.0,0.00054794,120]
[312745075,1706191890932,-500.0,0.00054794,120]
[312745076,1706191890941,-504.99724126,0.00054794,120]
[312745077,1706191890950,-507.96609233,0.00054794,120]
[312745078,1706191890959,-505.51864086,0.00054794,120]
[312745079,1706191890968,-500.0,0.00054794,120]
[312745080,1706191890978,-479.33058491,0.00054794,120]
[312745081,1706191890989,-500.0,0.00054794,120]
[312745082,1706191890998,-513.77871502,0.00054794,120]
[312745083,1706191891008,-500.0,0.00054794,120]
[312745084,1706191891175,-504.66352179,0.00054794,120]
[312745085,1706191891186,-500.0,0.00054794,120]
[312745086,1706191891197,-500.0,0.00054794,120]
[312745087,1706191891206,-507.76313276,0.00054794,120]
[312745088,1706191891215,-500.0,0.00054794,120]
[312745089,1706191891225,-500.0,0.00054794,120]
[312745090,1706191891235,-500.0,0.00054794,120]
[312745091,1706191891245,-500.0,0.00054794,120]
[312745092,1706191891254,-500.0,0.00054794,120]
[312745093,1706191891264,-500.27862676,0.00054794,120]
[312745094,1706191891274,-509.16676307,0.00054794,120]
[312745095,1706191891283,-500.0,0.00054794,120]
[312745096,1706191891293,-500.0,0.00054794,120]
[312745097,1706191891302,-512.88099105,0.00054794,120]
[312745098,1706191891314,-507.96086162,0.00054794,120]
[312745099,1706191891324,-500.0,0.00054794,120]
[312745100,1706191891334,-518.84229183,0.00054794,120]
[312745101,1706191891344,-680.29,0.00054794,120]
[312745102,1706191891353,-500.0,0.00054794,120]
[312745103,1706191891363,-321.20789206,0.00054794,120]
[312745104,1706191891373,-500.0,0.00054794,120]
[312745105,1706191891386,-500.0,0.00054794,120]
[312745106,1706191891396,-500.0,0.00054794,120]
[312745107,1706191891405,-506.0115247,0.00054794,120]
[312745108,1706191891415,-500.0,0.00054794,120]
[312745109,1706191891425,-500.0,0.00054794,120]
[312745110,1706191891434,-500.0,0.00054794,120]
[312745111,1706191891443,-1626.54,0.00054794,120]
[312745112,1706191891453,-500.0,0.00054794,120]
[312745113,1706191891464,-500.0,0.00054794,120]
[312745114,1706191891474,-506.24596605,0.00054794,120]
[312745115,1706191891484,-500.0,0.00054794,120]
[312745116,1706191891493,-500.0,0.00054794,120]
[312745117,1706191891503,-508.1243974,0.00054794,120]
[312745118,1706191891512,-500.0,0.00054794,120]
[312745119,1706191891523,-510.83338709,0.00054794,120]
[312745120,1706191891532,-500.0,0.00054794,120]
[312745121,1706191891542,-504.47900277,0.00054794,120]
[312745122,1706191891551,-500.0,0.00054794,120]
[312745123,1706191891561,-500.0,0.00054794,120]
[312745124,1706191891571,-505.9553704,0.00054794,120]
[312745125,1706191891581,-863.91,0.00054794,120]
[312745126,1706191891591,-505.45798867,0.00054794,120]
[312745127,1706191891600,-500.0,0.00054794,120]
[312745128,1706191891609,-500.0,0.00054794,120]
[312745129,1706191891618,-500.0,0.00054794,120]
[312745130,1706191891629,-535.07925803,0.00054794,120]
[312745131,1706191891639,-502.93900097,0.00054794,120]
[312745132,1706191891650,-500.0,0.00054794,120]
[312745133,1706191891660,-508.09951124,0.00054794,120]
[312745134,1706191891669,-500.0,0.00054794,120]
[312745135,1706191891679,-500.0,0.00054794,120]
[312745136,1706191891689,-500.0,0.00054794,120]
[312745137,1706191891699,-505.74943036,0.00054794,120]
[312745138,1706191891708,-500.0,0.00054794,120]
[312745139,1706191891718,-518.79239465,0.00054794,120]
[312745140,1706191891729,-501.97848887,0.00054794,120]
[312745141,1706191891739,-500.0,0.00054794,120]
[312745142,1706191891750,-500.0,0.00054794,120]
[312745143,1706191891760,-500.0,0.00054794,120]
[312745144,1706191891770,-500.0,0.00054794,120]
[312745145,1706191891781,-500.0,0.00054794,120]
[312745146,1706191891791,-500.0,0.00054794,120]
[312745147,1706191891802,-500.0,0.00054794,120]
[312745148,1706191891812,-501.71734893,0.00054794,120]
[312745149,1706191891822,-500.0,0.00054794,120]
[312745150,1706191891832,-500.0,0.00054794,120]
[312745151,1706191891842,-500.0,0.00054794,120]
[312745152,1706191891852,-505.62082449,0.00054794,120]
[312745153,1706191891862,-514.38768167,0.00054794,120]
[312745154,1706191891871,-525.88,0.00054794,120]
[312745155,1706191891880,-500.0,0.00054794,120]
[312745156,1706191891890,-500.0,0.00054794,120]
[312745157,1706191891900,-1232.05,0.00054794,120]
[312745158,1706191891910,-500.0,0.00054794,120]
[312745159,1706191891919,-510.53174557,0.00054794,120]
[312745160,1706191891929,-509.86153149,0.00054794,120]
[312745161,1706191891939,-500.0,0.00054794,120]
[312745162,1706191891949,-500.0,0.00054794,120]
[312745163,1706191891958,-500.0,0.00054794,120]
[312745164,1706191891968,-1625.22,0.00054794,5]
[312745165,1706191891977,-514.58400753,0.00054794,120]
[312745166,1706191891987,-500.0,0.00054794,120]
[312745167,1706191891997,-513.73735594,0.00054794,120]
[312745168,1706191892007,-500.0,0.00054794,120]
[312745169,1706191892017,-2095.53,0.00054794,5]
[312745170,1706191892027,-500.0,0.00054794,120]
[312745171,1706191892036,-500.0,0.00054794,120]
[312745172,1706191892046,-515.13019556,0.00054794,120]
[312745173,1706191892055,-502.57689484,0.00054794,120]
[312745174,1706191892066,-516.87417075,0.00054794,120]
[312745175,1706191892078,-500.0,0.00054794,120]
[312745176,1706191892087,-500.0,0.00054794,120]
[312745177,1706191892097,-1021.93698148,0.00054794,120]
[312745178,1706191892107,-500.0,0.00054794,120]
[312745179,1706191892117,-500.0,0.00054794,120]
[312745180,1706191892127,-500.0,0.00054794,120]
[312745181,1706191892136,-500.0,0.00054794,120]
[312745182,1706191892146,-500.0,0.00054794,120]
[312745183,1706191892156,-515.20137238,0.00054794,120]
[312745184,1706191892166,-500.0,0.00054794,120]
[312745185,1706191892175,-598.55,0.00054794,120]
[312745186,1706191892184,-506.01030303,0.00054794,120]
[312745187,1706191892194,-500.0,0.00054794,120]
[312745188,1706191892203,-500.0,0.00054794,120]
[312745189,1706191892213,-500.0,0.00054794,120]
[312745190,1706191892222,-500.0,0.00054794,120]
[312745191,1706191892232,-500.0,0.00054794,120]
[312745192,1706191892241,-500.0,0.00054794,120]
[312745193,1706191892251,-510.66738811,0.00054794,120]
[312745194,1706191892261,-500.0,0.00054794,120]
[312745195,1706191892272,-500.0,0.00054794,120]
[312745196,1706191892281,-511.96149107,0.00054794,120]
[312745197,1706191892291,-500.0,0.00054794,120]
[312745198,1706191892301,-1218.8,0.00054794,120]
[312745199,1706191892312,-504.84640786,0.00054794,120]
[312745200,1706191892321,-500.0,0.00054794,120]
[312745201,1706191892330,-176.63548022,0.00054794,120]
[312745202,1706191892341,-500.0,0.00054794,120]
[312745203,1706191892350,-500.0,0.00054794,120]
[312745204,1706191892361,-515.63379505,0.00054794,120]
[312745205,1706191892371,-729.37,0.00054794,120]
[312745206,1706191892382,-504.62547446,0.00054794,120]
[312745207,1706191892394,-500.0,0.00054794,120]
[312745208,1706191892403,-514.69614664,0.00054794,120]
[312745209,1706191892413,-500.0,0.00054794,120]
[312745210,1706191892424,-500.0,0.00054794,120]
[312745211,1706191892434,-1196.06,0.00054794,120]
[312745212,1706191892445,-500.0,0.00054794,120]
[312745213,1706191892454,-500.0,0.00054794,120]
[312745214,1706191892467,-500.0,0.00054794,120]
[312745215,1706191892478,-335.67259629,0.00054794,120]
[312745216,1706191892488,-509.8050699,0.00054794,120]
[312745217,1706191892497,-500.0,0.00054794,120]
[312745218,1706191892507,-500.0,0.00054794,120]
[312745219,1706191892516,-518.97381377,0.00054794,120]
[312745220,1706191892526,-500.0,0.00054794,120]
[312745221,1706191892536,-500.0,0.00054794,120]
[312745222,1706191892546,-500.0,0.00054794,120]
[312745223,1706191892555,-500.0,0.00054794,120]
[312745224,1706191892567,-507.22142654,0.00054794,120]
[312745225,1706191892576,-500.0,0.00054794,120]
[312745226,1706191892586,-500.0,0.00054794,120]
[312745227,1706191892595,-153.90506379,0.00054798,60]
[312745228,1706191892605,-1055.0,0.000548,30]
[312745229,1706191892615,-161.0,0.000548,30]
[312745230,1706191892624,-3000.0,0.000548,30]
[312745231,1706191892634,-500.0,0.000548,2]
[312745232,1706191892643,-250.0,0.000548,30]
[312745233,1706191892653,-1691.0,0.000548,120]
[312745234,1706191892662,-2782.0,0.000548,120]
[312745235,1706191892671,-8000.0,0.000548,120]
[312745236,1706191892681,-155.00526785,0.00054826,60]
[312745237,1706191892690,-1175.50042208,0.00054838,60]
[312745238,1706191892699,-396.03974936,0.00054864,60]
[312745239,1706191892709,-153.488116,0.0005488,60]
[312745240,1706191892719,-785.98,0.00054931,120]
[312745241,1706191892729,-575.32,0.00054931,120]
[312745242,1706191892739,-787.27,0.00054931,120]
[312745243,1706191892749,-641.44,0.00054931,120]
[312745244,1706191892759,-151.01696798,0.00054951,60]
[312745245,1706191892769,-162.32786329,0.00054973,60]
[312745246,1706191892778,-200.0,0.00054979,120]
[312745247,1706191892787,-155.00526785,0.00054989,60]
[312745248,1706191892797,-2000.0,0.0005499,73]
[312745249,1706191892806,-547.14423294,0.00054997,2]
[312745250,1706191892818,-50000.0,0.00055,35]
[312745251,1706191892828,-233.29011342,0.00055,120]
[312745252,1706191892838,-212.25794184,0.00055,42]
[312745253,1706191892847,-379.16126278,0.00055,4]
[312745254,1706191892856,-1040.59445035,0.00055,120]
[312745255,1706191892866,-509.87575162,0.00055,120]
[312745256,1706191892875,-217.67419098,0.00055,4]
[312745257,1706191892885,-168.23786519,0.00055,4]
[312745258,1706191892894,-168.0,0.00055,120]
[312745259,1706191892904,-1015.0,0.00055,120]
[312745260,1706191892914,-165.0,0.00055,120]
[312745261,1706191892924,-418.0,0.00055,30]
[312745262,1706191892934,-200.0,0.00055041,120]
[312745263,1706191892943,-155.00526785,0.00055065,120]
[312745264,1706191892953,-512.77,0.00055068,120]
[312745265,1706191892963,-749.61,0.00055068,120]
[312745266,1706191892972,-785.22,0.00055068,120]
[312745267,1706191892981,-922.06,0.00055068,120]
[312745268,1706191892991,-566.37563026,0.00055068,120]
[312745269,1706191893001,-500.0,0.00055068,120]
[312745270,1706191893011,-500.0,0.00055068,120]
[312745271,1706191893020,-1085.77,0.00055068,7]
[312745272,1706191893030,-536.71,0.00055068,20]
[312745273,1706191893040,-1442.1,0.00055068,120]
[312745274,1706191893049,-2284.7,0.00055068,120]
[312745275,1706191893059,-2954.82,0.00055068,120]
[312745276,1706191893068,-196.74593414,0.00055068,120]
[312745277,1706191893078,-505.7,0.00055068,120]
[312745278,1706191893088,-168.17,0.00055068,120]
[312745279,1706191893097,-554.4,0.00055068,120]
[312745280,1706191893107,-955.46,0.00055068,2]
[312745281,1706191893117,-544.19,0.00055068,120]
[312745282,1706191893126,-461.18462013,0.00055068,120]